bitfinex/quotes_BTCUSD_20250119
["timestamp","ask_amount","ask_price","bid_price","bid_amount"]
[1737311033632,0.51332347,105120.0,105110.0,0.13070271]
[1737311033834,0.57597388,105120.0,105110.0,0.13070271]
[1737311034901,0.58574581,105120.0,105110.0,0.13070271]
[1737311035921,0.68498662,105120.0,105110.0,0.13070271]
[1737311036082,1.38498662,105120.0,105110.0,0.08175288]
[1737311036282,1.30443306,105120.0,105110.0,0.08175288]
[1737311036905,1.31123306,105120.0,105110.0,0.08175288]
[1737311037877,1.31123306,105120.0,105110.0,0.08955288]
[1737311038156,1.31123306,105120.0,105110.0,0.09045189]
[1737311038337,1.31123306,105120.0,105110.0,0.04150206]
[1737311038675,1.34858265,105120.0,105110.0,0.04150206]
[1737311039087,1.40443306,105120.0,105110.0,0.04150206]
[1737311039312,1.41123306,105120.0,105110.0,0.04150206]
[1737311041484,1.34858265,105120.0,105110.0,0.04150206]
[1737311041756,1.41123306,105120.0,105110.0,0.04150206]
[1737311041964,0.10258577,105110.0,105100.0,0.048]
[1737311042125,0.96447699,105110.0,105100.0,0.04804973]
[1737311042571,0.26447699,105110.0,105100.0,0.04804973]
[1737311042787,0.36447699,105110.0,105100.0,0.04804973]
[1737311044182,0.36447699,105110.0,105100.0,0.09556973]
[1737311045038,0.36447699,105110.0,105100.0,0.17386973]
[1737311045449,1.06447699,105110.0,105100.0,0.17386973]
[1737311045650,0.36447699,105110.0,105100.0,0.17386973]
[1737311046536,1.06447699,105110.0,105100.0,0.17386973]
[1737311047864,1.32078024,105110.0,105100.0,0.17386973]
[1737311048842,1.29924293,105110.0,105100.0,0.17386973]
[1737311050049,1.29924293,105110.0,105100.0,0.17476895]
[1737311053326,1.58758409,105110.0,105100.0,0.17476895]
[1737311053877,0.88758409,105110.0,105100.0,0.17476895]
[1737311054264,1.28305151,105110.0,105100.0,0.17476895]
[1737311055563,1.28305151,105110.0,105100.0,0.12581912]
[1737311055985,0.88758409,105110.0,105100.0,0.12581912]
[1737311056212,0.74647099,105110.0,105100.0,0.12581912]
[1737311056334,0.75327099,105110.0,105100.0,0.12581912]
[1737311056843,1.20604293,105110.0,105100.0,0.12581912]
[1737311057837,0.50604293,105110.0,105100.0,0.12581912]
[1737311058416,0.63462435,105110.0,105100.0,0.12581912]
[1737311059052,1.33462435,105110.0,105100.0,0.12581912]
[1737311059211,1.1635645,105110.0,105100.0,0.12581912]
[1737311059921,1.2635645,105110.0,105100.0,0.12581912]
[1737311060670,1.30604293,105110.0,105100.0,0.12581912]
[1737311060864,1.34715603,105110.0,105100.0,0.04751912]
[1737311061294,1.26492983,105110.0,105100.0,0.04751912]
[1737311061495,1.34715603,105110.0,105100.0,0.04751912]
[1737311061813,1.83630994,105110.0,105100.0,0.04751912]
[1737311061995,1.79519684,105110.0,105100.0,0.04751912]
[1737311062562,1.76615603,105110.0,105100.0,0.04751912]
[1737311062765,1.44924293,105110.0,105100.0,0.04751912]
[1737311062905,1.41492983,105110.0,105100.0,0.04751912]
[1737311063102,1.51005183,105110.0,105100.0,0.04751912]
[1737311064212,1.91736121,105110.0,105100.0,0.04751912]
[1737311064977,1.81736121,105110.0,105100.0,0.04751912]
[1737311065690,1.91056121,105110.0,105100.0,0.04751912]
[1737311065894,1.91736121,105110.0,105100.0,0.04751912]
[1737311066068,1.81736121,105110.0,105100.0,0.12551912]
[1737311066273,1.76736121,105110.0,105100.0,0.12551912]
[1737311066468,1.66736121,105110.0,105100.0,0.12551912]
[1737311066813,1.66056121,105110.0,105100.0,0.12551912]
[1737311067112,0.96736121,105110.0,105100.0,0.12551912]
[1737311068085,0.96736121,105110.0,105100.0,0.14851912]
[1737311068528,0.96736121,105110.0,105100.0,0.19421912]
[1737311069108,0.9461183,105110.0,105100.0,0.19421912]
[1737311069903,0.88346251,105110.0,105100.0,0.19421912]
[1737311070782,0.87666251,105110.0,105100.0,0.19421912]
[1737311070984,0.44462536,105110.0,105100.0,0.19421912]
[1737311071187,1.14462536,105110.0,105100.0,0.19421912]
[1737311071737,1.14462536,105110.0,105100.0,0.17121912]
[1737311074170,1.20048115,105110.0,105100.0,0.17121912]
[1737311074390,0.50728115,105110.0,105100.0,0.17121912]
[1737311077320,1.20728115,105110.0,105100.0,0.17121912]
[1737311080954,1.49562231,105110.0,105100.0,0.17121912]
[1737311082165,1.20728115,105110.0,105100.0,0.17121912]
[1737311083287,0.50728115,105110.0,105100.0,0.17121912]
[1737311086196,1.20728115,105110.0,105100.0,0.17121912]
[1737311086602,1.20728115,105110.0,105100.0,0.12551912]
[1737311086811,1.18573834,105110.0,105100.0,0.12551912]
[1737311089240,1.23468817,105110.0,105100.0,0.12551912]
[1737311092345,1.52302933,105110.0,105100.0,0.12551912]
[1737311093282,1.52302933,105110.0,105100.0,0.07656929]
[1737311093462,1.23468817,105110.0,105100.0,0.07656929]
[1737311094315,0.53468817,105110.0,105100.0,0.07656929]
[1737311095347,0.53418393,105110.0,105100.0,0.12413624]
[1737311097038,0.27737054,105110.0,105100.0,0.12413624]
[1737311097259,0.97737054,105110.0,105100.0,0.12413624]
[1737311098338,1.19131603,105110.0,105100.0,0.12413624]
[1737311098816,1.19131603,105110.0,105100.0,0.12503546]
[1737311099959,1.19155727,105110.0,105100.0,0.12503546]
[1737311100237,0.36280567,105110.0,105100.0,0.26738246]
[1737311100442,0.26356486,105110.0,105100.0,0.49960842]
[1737311100650,0.26356486,105110.0,105100.0,0.56372201]
[1737311101167,0.26356486,105110.0,105100.0,0.53162474]
[1737311101611,0.26356486,105110.0,105100.0,0.41738246]
[1737311101838,0.26356486,105110.0,105100.0,0.49960842]
[1737311102081,0.26356486,105110.0,105100.0,0.49992134]
[1737311102317,0.04961937,105110.0,105100.0,0.58436131]
[1737311103036,0.04961937,105110.0,105100.0,0.56473661]
[1737311103275,0.04961937,105110.0,105100.0,0.56442369]
[1737311103943,0.04961937,105110.0,105100.0,0.47998372]
[1737311104906,0.04961937,105110.0,105100.0,0.48029664]
[1737311105113,0.04961937,105110.0,105100.0,0.50878616]
[1737311106530,0.04961937,105110.0,105100.0,0.50847324]
[1737311113963,0.04961937,105110.0,105100.0,0.22991155]
[1737311114198,0.5848744,105110.0,105100.0,0.04846617]
[1737311114452,0.38559944,105110.0,105100.0,0.04846617]
[1737311115593,0.33664961,105110.0,105100.0,0.04846617]
[1737311115824,0.42219699,105110.0,105100.0,0.04846617]
[1737311116301,1.12219699,105110.0,105100.0,0.04846617]
[1737311119583,0.42219699,105110.0,105100.0,0.04846617]
[1737311120838,0.43187725,105110.0,105100.0,0.04846617]
[1737311121177,0.56019833,105110.0,105100.0,0.04846617]
[1737311121962,0.43187725,105110.0,105100.0,0.04846617]
[1737311122350,0.43863725,105110.0,105100.0,0.04846617]
[1737311124083,1.13863725,105110.0,105100.0,0.04846617]
[1737311124520,1.26695833,105110.0,105100.0,0.04846617]
[1737311125912,1.4380531,105110.0,105100.0,0.04846617]
[1737311127246,1.26695833,105110.0,105100.0,0.04846617]
[1737311130807,1.4380531,105110.0,105100.0,0.04846617]
[1737311131986,1.5380531,105110.0,105100.0,0.04846617]
[1737311132528,1.56665997,105110.0,105100.0,0.04846617]
[1737311132969,1.58631595,105110.0,105100.0,0.04846617]
[1737311133495,1.67850908,105110.0,105100.0,0.04846617]
[1737311134126,1.82850908,105110.0,105100.0,0.04846617]
[1737311134319,1.91430473,105110.0,105100.0,0.04846617]
[1737311134926,1.89472442,105110.0,105100.0,0.04846617]
[1737311135369,1.65777893,105110.0,105100.0,0.04846617]
[1737311135568,1.67609239,105110.0,105100.0,0.04846617]
[1737311137997,0.22548366,105100.0,105090.0,0.00089838]
[1737311138268,0.4825484,105100.0,105090.0,0.00104783]
[1737311138562,1.1825484,105100.0,105090.0,0.00104783]
[1737311139945,1.56605273,105100.0,105090.0,0.00104783]
[1737311140359,0.86605273,105100.0,105090.0,0.00104783]
[1737311140535,0.86598945,105100.0,105090.0,0.00104783]
[1737311140740,0.96598945,105100.0,105090.0,0.04861478]
[1737311141108,0.79554308,105100.0,105090.0,0.04819872]
[1737311141831,1.32054308,105100.0,105090.0,0.04819872]
[1737311142048,1.32730308,105100.0,105090.0,0.04819872]
[1737311143073,1.1994683,105100.0,105090.0,0.04819872]
[1737311143695,0.4994683,105100.0,105090.0,0.04819872]
[1737311144092,0.41424512,105100.0,105090.0,0.04819872]
[1737311146685,1.11424512,105100.0,105090.0,0.04819872]
[1737311147572,1.39618593,105100.0,105090.0,0.04819872]
[1737311147781,1.44298593,105100.0,105090.0,0.04819872]
[1737311147974,0.09590711,105090.0,105080.0,0.00089838]
[1737311148174,1.12050178,105090.0,105080.0,0.00094819]
[1737311148390,1.20244259,105090.0,105080.0,0.00094819]
[1737311148598,0.45000178,105090.0,105080.0,0.00094819]
[1737311148797,0.75000178,105090.0,105080.0,0.00094819]
[1737311149162,0.83522496,105090.0,105080.0,0.00094819]
[1737311149300,0.83522496,105090.0,105080.0,1.9e-07]
[1737311149301,0.85822496,105090.0,105080.0,1.9e-07]
[1737311149932,0.85822496,105090.0,105080.0,0.04756714]
[1737311150134,0.77300178,105090.0,105080.0,0.04756714]
[1737311150445,0.78716877,105090.0,105080.0,0.04756714]
[1737311151020,1.01896211,105090.0,105080.0,0.04756714]
[1737311151190,1.71896211,105090.0,105080.0,0.04756714]
[1737311151396,1.74286412,105090.0,105080.0,0.04756714]
[1737311151557,1.74286412,105090.0,105080.0,0.04256714]
[1737311153610,1.60257484,105090.0,105080.0,0.04256714]
[1737311153804,1.60257484,105090.0,105080.0,1.4e-07]
[1737311154634,1.64633026,105090.0,105080.0,1.4e-07]
[1737311154828,1.74557107,105090.0,105080.0,1.4e-07]
[1737311156393,1.74557107,105090.0,105080.0,0.00042824]
[1737311158743,0.37936352,105080.0,105070.0,0.0008988]
[1737311158939,0.47860433,105080.0,105070.0,0.0008988]
[1737311159099,0.56130433,105080.0,105070.0,0.0008988]
[1737311159301,0.66054514,105080.0,105070.0,0.0008988]
[1737311159485,1.36054514,105080.0,105070.0,0.0008988]
[1737311159896,0.66054514,105080.0,105070.0,0.0008988]
[1737311160495,0.87367789,105080.0,105070.0,0.0087588]
[1737311161649,1.02367789,105080.0,105070.0,0.0087588]
[1737311161898,0.87367789,105080.0,105070.0,0.0087588]
[1737311162115,0.77443708,105080.0,105070.0,0.0087588]
[1737311162495,0.72591549,105080.0,105070.0,0.0087588]
[1737311162694,1.42591549,105080.0,105070.0,0.0087588]
[1737311164060,1.57591549,105080.0,105070.0,0.0087588]
[1737311164261,1.6751563,105080.0,105070.0,0.0087588]
[1737311164595,1.57591549,105080.0,105070.0,0.0087588]
[1737311165565,1.61959613,105080.0,105070.0,0.0087588]
[1737311165772,1.57907306,105080.0,105070.0,8e-07]
[1737311167879,0.418183,105060.0,105050.0,0.00089901]
[1737311168085,1.34953767,105060.0,105050.0,0.00104138]
[1737311168867,1.44877848,105060.0,105050.0,0.00104138]
[1737311169581,1.44877848,105060.0,105050.0,0.04862138]
[1737311169967,2.04520256,105060.0,105050.0,0.04862138]
[1737311170175,1.94596175,105060.0,105050.0,0.04862138]
[1737311171994,1.93920175,105060.0,105050.0,0.04862138]
[1737311172248,1.94596175,105060.0,105050.0,0.04862138]
[1737311173253,1.95571342,105060.0,105050.0,0.04862138]
[1737311173452,1.87050998,105060.0,105050.0,0.04862138]
[1737311173686,1.96975079,105060.0,105050.0,0.04862138]
[1737311174070,1.98849672,105060.0,105050.0,0.04862138]
[1737311174438,2.03789672,105060.0,105050.0,0.04862138]
[1737311175203,1.33789672,105060.0,105050.0,0.04862138]
[1737311176952,1.21009156,105060.0,105050.0,0.04862138]
[1737311177284,1.16069156,105060.0,105050.0,0.04862138]
[1737311177495,0.85633689,105060.0,105050.0,0.12492138]
[1737311177695,0.68459929,105060.0,105050.0,0.17202138]
[1737311177899,0.67783929,105060.0,105050.0,0.17202138]
[1737311178121,1.38459929,105060.0,105050.0,0.17202138]
[1737311178430,1.40759929,105060.0,105050.0,0.17202138]
[1737311178640,0.70759929,105060.0,105050.0,0.17202138]
[1737311179563,0.38686074,105060.0,105050.0,0.17202138]
[1737311179997,0.38686074,105060.0,105050.0,0.16760038]
[1737311180749,0.38686074,105060.0,105050.0,0.16802858]
[1737311182656,1.08686074,105060.0,105050.0,0.16802858]
[1737311184478,0.38686074,105060.0,105050.0,0.16802858]
[1737311186273,0.59994086,105060.0,105050.0,0.16802858]
[1737311187056,0.47209279,105060.0,105050.0,0.16802858]
[1737311187495,1.17209279,105060.0,105050.0,0.16802858]
[1737311188755,1.29994086,105060.0,105050.0,0.16802858]
[1737311189578,1.23726393,105060.0,105050.0,0.16802858]
[1737311189776,1.47034774,105060.0,105050.0,0.16802858]
[1737311190980,1.68335634,105060.0,105050.0,0.16802858]
[1737311192238,0.98335634,105060.0,105050.0,0.16802858]
[1737311192403,0.89812429,105060.0,105050.0,0.16802858]
[1737311193306,0.77117565,105060.0,105050.0,0.16802858]
[1737311194220,0.77117565,105060.0,105050.0,0.12092858]
[1737311194588,0.85637909,105060.0,105050.0,0.12092858]
[1737311195414,1.34337049,105060.0,105050.0,0.12092858]
[1737311198910,0.64337049,105060.0,105050.0,0.12092858]
[1737311202681,0.58069356,105060.0,105050.0,0.12092858]
[1737311203292,0.58065356,105060.0,105050.0,0.12092858]
[1737311204226,0.71015072,105060.0,105050.0,0.12092858]
[1737311204402,0.70343072,105060.0,105050.0,0.12092858]
[1737311204571,0.71015072,105060.0,105050.0,0.12092858]
[1737311204773,0.74457609,105060.0,105050.0,0.12092858]
[1737311204997,0.75129609,105060.0,105050.0,0.12092858]
[1737311205377,0.83574753,105060.0,105050.0,0.12092858]
[1737311206334,1.37160216,105060.0,105050.0,0.12092858]
[1737311206538,1.36488216,105060.0,105050.0,0.12092858]
[1737311206747,1.37160216,105060.0,105050.0,0.12092858]
[1737311208075,1.28714515,105060.0,105050.0,0.12092858]
[1737311208601,1.28042515,105060.0,105050.0,0.1268837]
[1737311208826,1.16494167,105060.0,105050.0,0.1268837]
[1737311209699,1.2932931,105060.0,105050.0,0.1268837]
[1737311209922,1.33443847,105060.0,105050.0,0.1268837]
[1737311211177,1.50556264,105060.0,105050.0,0.1268837]
[1737311212262,1.20608704,105060.0,105050.0,0.1268837]
[1737311213036,1.20608704,105060.0,105050.0,0.12092858]
[1737311213504,1.90608704,105060.0,105050.0,0.12092858]
[1737311216509,1.90608704,105060.0,105050.0,0.07197875]
[1737311217247,1.92908704,105060.0,105050.0,0.07197875]
[1737311217995,2.22861429,105060.0,105050.0,0.07197875]
[1737311218243,2.18746892,105060.0,105050.0,0.07197875]
[1737311218470,2.22861429,105060.0,105050.0,0.11955875]
[1737311218712,2.18746892,105060.0,105050.0,0.11955875]
[1737311219137,2.0591001,105060.0,105050.0,0.11955875]
[1737311219337,1.3591001,105060.0,105050.0,0.11955875]
[1737311220487,1.3591001,105060.0,105050.0,0.12551372]
[1737311222219,1.16494167,105060.0,105050.0,0.11955875]
[1737311222473,1.90608704,105060.0,105050.0,0.11955875]
[1737311223376,1.90660339,105060.0,105050.0,0.11955875]
[1737311225815,1.86520545,105060.0,105050.0,0.11955875]
[1737311226316,1.90635082,105060.0,105050.0,0.11955875]
[1737311227960,1.94774876,105060.0,105050.0,0.11955875]
[1737311229491,1.97074876,105060.0,105050.0,0.11955875]
[1737311230330,1.94774876,105060.0,105050.0,0.11955875]
[1737311230563,1.90660339,105060.0,105050.0,0.11955875]
[1737311230763,1.94774876,105060.0,105050.0,0.11955875]
[1737311232375,1.24774876,105060.0,105050.0,0.11955875]
[1737311235533,1.94774876,105060.0,105050.0,0.11955875]
[1737311235912,1.90660339,105060.0,105050.0,0.11955875]
[1737311238021,1.94774876,105060.0,105050.0,0.0480082]
[1737311238838,2.37964247,105060.0,105050.0,0.0480082]
[1737311239049,2.66798363,105060.0,105050.0,0.0480082]
[1737311239260,2.57423529,105060.0,105050.0,0.0480082]
[1737311240099,1.91827307,105060.0,105050.0,0.0480082]
[1737311240315,1.65099307,105060.0,105050.0,0.0480082]
[1737311240730,1.69213844,105060.0,105050.0,0.0480082]
[1737311241157,2.16835198,105060.0,105050.0,0.0480082]
[1737311242793,2.10949735,105060.0,105050.0,0.0480082]
[1737311243005,2.25949735,105060.0,105050.0,0.0480082]
[1737311243215,0.30933737,105050.0,105040.0,0.00089922]
[1737311243427,1.27372355,105050.0,105040.0,0.00094902]
[1737311243641,1.56410973,105050.0,105040.0,0.00094902]
[1737311243849,1.37296436,105050.0,105040.0,0.00094902]
[1737311244058,0.47449174,105040.0,105030.0,0.00089859]
[1737311244293,0.47449174,105040.0,105030.0,0.0013969]
[1737311244294,0.57373255,105040.0,105030.0,0.0013969]
[1737311244979,0.55418917,105040.0,105030.0,0.0013969]
[1737311245195,1.25418917,105040.0,105030.0,0.0013969]
[1737311245400,1.32560492,105040.0,105030.0,0.0013969]
[1737311246244,1.17560492,105040.0,105030.0,0.0013969]
[1737311246456,1.51088342,105040.0,105030.0,0.0013969]
[1737311246664,1.51088342,105040.0,105030.0,0.0489769]
[1737311248110,2.21088342,105040.0,105030.0,0.0489769]
[1737311248320,1.52034917,105040.0,105030.0,0.0489769]
[1737311250344,1.37034917,105040.0,105030.0,0.0489769]
[1737311250542,1.45121673,105040.0,105030.0,0.0489769]
[1737311252341,1.53324318,105040.0,105030.0,0.0489769]
[1737311252724,1.47049582,105040.0,105030.0,0.0489769]
[1737311253321,1.53324318,105040.0,105030.0,0.0489769]
[1737311253478,1.68324318,105040.0,105030.0,0.0489769]
[1737311253680,1.62049582,105040.0,105030.0,0.0489769]
[1737311256640,2.38324318,105040.0,105030.0,0.0489769]
[1737311256879,2.32049582,105040.0,105030.0,0.0489769]
[1737311257211,2.38324318,105040.0,105030.0,0.0489769]
[1737311257414,2.32049582,105040.0,105030.0,0.0489769]
[1737311257617,2.38324318,105040.0,105030.0,0.0489769]
[1737311257851,2.32049582,105040.0,105030.0,0.0489769]
[1737311258044,2.38324318,105040.0,105030.0,0.0489769]
[1737311258680,2.32049582,105040.0,105030.0,0.0489769]
[1737311259759,2.23962826,105040.0,105030.0,0.0489769]
[1737311261809,2.0268809,105040.0,105030.0,0.0489769]
[1737311261978,1.97234826,105040.0,105030.0,0.0489769]
[1737311262369,1.97324769,105040.0,105030.0,0.0489769]
[1737311262985,1.92982135,105040.0,105030.0,0.0489769]
[1737311263247,1.22982135,105040.0,105030.0,0.0489769]
[1737311263654,1.2680749,105040.0,105030.0,0.1697769]
[1737311263864,1.26532915,105040.0,105030.0,0.1697769]
[1737311264065,1.28594258,105040.0,105030.0,0.1697769]
[1737311264269,1.28594258,105040.0,105030.0,0.2649869]
[1737311264741,1.28594258,105040.0,105030.0,0.1697769]
[1737311264885,1.28594258,105040.0,105030.0,0.2649869]
[1737311265086,0.90206124,105040.0,105030.0,0.2649869]
[1737311265292,0.90206124,105040.0,105030.0,0.1697769]
[1737311265916,0.90206124,105040.0,105030.0,0.2649869]
[1737311266180,1.60206124,105040.0,105030.0,0.2649869]
[1737311266327,1.59534124,105040.0,105030.0,0.2649869]
[1737311266533,1.60206124,105040.0,105030.0,0.2649869]
[1737311267334,0.90206124,105040.0,105030.0,0.2649869]
[1737311267915,0.90206124,105040.0,105030.0,0.1697769]
[1737311270138,1.05206124,105040.0,105030.0,0.1697769]
[1737311274996,1.75206124,105040.0,105030.0,0.1697769]
[1737311276039,1.05206124,105040.0,105030.0,0.1697769]
[1737311277892,1.05206124,105040.0,105030.0,0.12082707]
[1737311281495,0.90206124,105040.0,105030.0,0.12082707]
[1737311281655,1.05206124,105040.0,105030.0,0.12082707]
[1737311282613,1.05206124,105040.0,105030.0,0.21603707]
[1737311283703,1.05206124,105040.0,105030.0,0.12082707]
[1737311284258,1.05206124,105040.0,105030.0,0.21603707]
[1737311284558,1.05206124,105040.0,105030.0,0.12082707]
[1737311284759,1.04534124,105040.0,105030.0,0.12082707]
[1737311284966,1.05206124,105040.0,105030.0,0.12082707]
[1737311286265,1.05206124,105040.0,105030.0,0.12125517]
[1737311287064,1.75206124,105040.0,105030.0,0.12125517]
[1737311289561,1.65686024,105040.0,105030.0,0.12125517]
[1737311289762,1.75206124,105040.0,105030.0,0.12125517]
[1737311291260,1.05206124,105040.0,105030.0,0.12125517]
[1737311292945,1.09322208,105040.0,105030.0,0.00045517]
[1737311294008,1.17851322,105040.0,105030.0,0.00045517]
[1737311294214,1.13735238,105040.0,105030.0,0.00045517]
[1737311294652,1.83735238,105040.0,105030.0,0.00045517]
[1737311294835,1.9652891,105040.0,105030.0,0.00045517]
[1737311295213,1.2652891,105040.0,105030.0,0.08185517]
[1737311296828,1.2652891,105040.0,105030.0,0.08483306]
[1737311297258,1.05206124,105040.0,105030.0,0.08483306]
[1737311299875,1.05206124,105040.0,105030.0,0.17801725]
[1737311299876,1.34636024,105040.0,105030.0,0.17801725]
[1737311300083,0.80686024,105040.0,105030.0,0.17801725]
[1737311301931,0.80686024,105040.0,105030.0,0.18099488]
[1737311304377,1.50686024,105040.0,105030.0,0.18099488]
[1737311304603,1.50014024,105040.0,105030.0,0.18099488]
[1737311304834,1.50682024,105040.0,105030.0,0.18099488]
[1737311310186,1.59211138,105040.0,105030.0,0.18099488]
[1737311310500,0.89211138,105040.0,105030.0,0.19063321]
[1737311312401,0.80682024,105040.0,105030.0,0.19063321]
[1737311312608,0.80682024,105040.0,105030.0,0.25335606]
[1737311312816,0.80014024,105040.0,105030.0,0.18968113]
[1737311313022,0.80014024,105040.0,105030.0,0.19063311]
[1737311314377,0.84909007,105040.0,105030.0,0.19063311]
[1737311324238,0.80014024,105040.0,105030.0,0.19063311]
[1737311329235,0.80014024,105040.0,105030.0,0.23177995]
[1737311329398,0.80014024,105040.0,105030.0,0.23082797]
[1737311329597,0.80014024,105040.0,105030.0,0.18968113]
[1737311329809,0.80014024,105040.0,105030.0,0.19063311]
[1737311330892,0.80014024,105040.0,105030.0,0.23177995]
[1737311330893,0.70089943,105040.0,105030.0,0.23177995]
[1737311331108,0.70089943,105040.0,105030.0,0.42742797]
[1737311331894,0.70089943,105040.0,105030.0,0.42774089]
[1737311332100,0.70089943,105040.0,105030.0,0.42476326]
[1737311332643,0.70089943,105040.0,105030.0,0.42774031]
[1737311337908,0.70089943,105040.0,105030.0,0.44717137]
[1737311343348,0.70089943,105040.0,105030.0,0.48831821]
[1737311343724,0.70089943,105040.0,105030.0,0.58831821]
[1737311343914,0.70089943,105040.0,105030.0,0.68755902]
[1737311344291,0.70089943,105040.0,105030.0,0.68458197]
[1737311344904,0.70089943,105040.0,105030.0,0.68426905]
[1737311345396,0.70089943,105040.0,105030.0,1.50346268]
[1737311345710,0.70089943,105040.0,105030.0,1.58790265]
[1737311346914,0.70089943,105040.0,105030.0,1.37680272]
[1737311347877,0.70089943,105040.0,105030.0,1.39980272]
[1737311351560,0.70089943,105040.0,105030.0,1.61145365]
[1737311352534,0.70089943,105040.0,105030.0,1.40691916]
[1737311352705,0.70189943,105040.0,105030.0,1.301466]
[1737311353671,0.70189943,105040.0,105030.0,0.48194177]
[1737311354458,0.70189943,105040.0,105030.0,0.3972814]
[1737311354671,0.70189943,105040.0,105030.0,0.39752997]
[1737311355046,0.78179943,105040.0,105030.0,0.25555207]
[1737311355251,0.78179943,105040.0,105030.0,0.29669891]
[1737311355656,0.78179943,105040.0,105030.0,0.2994274]
[1737311356960,0.78179943,105040.0,105030.0,0.29967597]
[1737311358228,0.82959943,105040.0,105030.0,0.29967597]
[1737311358438,0.82959943,105040.0,105030.0,0.2994274]
[1737311358845,0.82959943,105040.0,105030.0,0.32097115]
[1737311359017,0.74969943,105040.0,105030.0,0.32097115]
[1737311359616,0.70189943,105040.0,105030.0,0.46126174]
[1737311360168,0.70189943,105040.0,105030.0,0.39857115]
[1737311361258,0.70189943,105040.0,105030.0,0.39584196]
[1737311364332,0.70189943,105040.0,105030.0,0.39881905]
[1737311367654,0.70189943,105040.0,105030.0,0.39584196]
[1737311368210,0.70189943,105040.0,105030.0,0.48050233]
[1737311370347,0.70189943,105040.0,105030.0,0.48347944]
[1737311370526,0.70189943,105040.0,105030.0,0.39881907]
[1737311370948,0.70189943,105040.0,105030.0,0.32121907]
[1737311371148,0.77999943,105040.0,105030.0,0.25852848]
[1737311371354,0.77999943,105040.0,105030.0,0.25555137]
[1737311371555,0.77999943,105040.0,105030.0,0.31824196]
[1737311371758,0.77999943,105040.0,105030.0,0.44523252]
[1737311371960,0.77999943,105040.0,105030.0,0.52964502]
[1737311373041,0.77999943,105040.0,105030.0,0.31799409]
[1737311374848,0.77999943,105040.0,105030.0,0.32097129]
[1737311378856,0.77999943,105040.0,105030.0,0.29941954]
[1737311380868,0.77999943,105040.0,105030.0,0.2582807]
[1737311381070,0.77999943,105040.0,105030.0,0.29941954]
[1737311383844,0.77999943,105040.0,105030.0,0.29966741]
[1737311389235,0.87924024,105040.0,105030.0,0.2580734]
[1737311389435,0.92554024,105040.0,105030.0,0.2580734]
[1737311389851,0.92554024,105040.0,105030.0,0.2585014]
[1737311390674,0.92554024,105040.0,105030.0,0.25825353]
[1737311391074,0.92554024,105040.0,105030.0,0.29939237]
[1737311391288,0.92554024,105040.0,105030.0,0.31247237]
[1737311391690,1.46504024,105040.0,105030.0,0.31247237]
[1737311396467,1.412863,105040.0,105030.0,0.31247237]
[1737311402805,1.412863,105040.0,105030.0,0.32199976]
[1737311404352,1.412863,105040.0,105030.0,0.28086092]
[1737311404671,1.412863,105040.0,105030.0,0.12122259]
[1737311405271,1.508064,105040.0,105030.0,0.02601259]
[1737311406530,1.508064,105040.0,105030.0,0.0164852]
[1737311407184,1.59335514,105040.0,105030.0,0.0164852]
[1737311408213,1.72129186,105040.0,105030.0,0.0164852]
[1737311408416,1.3729307,105040.0,105030.0,0.0164852]
[1737311408553,2.0729307,105040.0,105030.0,0.0164852]
[1737311408755,2.0729307,105040.0,105030.0,0.013508]
[1737311409395,2.45681204,105040.0,105030.0,0.013508]
[1737311409604,2.46349204,105040.0,105030.0,0.013508]
[1737311410962,2.3782009,105040.0,105030.0,0.013508]
[1737311411979,2.24186106,105040.0,105030.0,0.108718]
[1737311412320,2.09186106,105040.0,105030.0,0.108718]
[1737311412526,1.54186106,105040.0,105030.0,0.108718]
[1737311412979,1.030043,105040.0,105030.0,0.108718]
[1737311413180,0.880043,105040.0,105030.0,0.108718]
[1737311413340,1.030043,105040.0,105030.0,0.108718]
[1737311413544,0.880043,105040.0,105030.0,0.14985684]
[1737311413743,0.801943,105040.0,105030.0,0.14985684]
[1737311414184,1.501943,105040.0,105030.0,0.108718]
[1737311414390,1.501943,105040.0,105030.0,0.14985684]
[1737311414586,0.801943,105040.0,105030.0,0.14985684]
[1737311414805,0.801943,105040.0,105030.0,0.108718]
[1737311415541,0.801943,105040.0,105030.0,0.11169563]
[1737311416447,0.801943,105040.0,105030.0,0.12115553]
[1737311418570,0.801943,105040.0,105030.0,0.13068364]
[1737311421172,0.801943,105040.0,105030.0,0.12115553]
[1737311422648,0.801943,105040.0,105030.0,0.16229437]
[1737311424392,0.801943,105040.0,105030.0,0.17182266]
[1737311425759,0.64972219,105040.0,105030.0,0.40067472]
[1737311425962,0.64972219,105040.0,105030.0,0.39972266]
[1737311426369,0.64972219,105040.0,105030.0,0.4408615]
[1737311427552,0.64972219,105040.0,105030.0,0.44110937]
[1737311428207,0.64972219,105040.0,105030.0,0.52279211]
[1737311428802,0.64847961,105040.0,105030.0,0.52279211]
[1737311429460,0.64847961,105040.0,105030.0,0.96250791]
[1737311432275,0.64847961,105040.0,105030.0,0.98133891]
[1737311435685,0.64847961,105040.0,105030.0,0.94020007]
[1737311436743,0.64847961,105040.0,105030.0,0.62747483]
[1737311438350,0.64847961,105040.0,105030.0,0.66861367]
[1737311439404,0.64847961,105040.0,105030.0,0.54162311]
[1737311441664,0.64847961,105040.0,105030.0,0.64162311]
[1737311441888,0.64847961,105040.0,105030.0,0.81186392]
[1737311444068,0.64847961,105040.0,105030.0,1.25107614]
[1737311444282,0.64847961,105040.0,105030.0,1.25082827]
[1737311446360,0.64847961,105040.0,105030.0,0.81161605]
[1737311447364,0.64847961,105040.0,105030.0,0.93860661]
[1737311447869,0.64847961,105040.0,105030.0,0.89746777]
[1737311448026,0.64847961,105040.0,105030.0,0.93860661]
[1737311448244,0.64847961,105040.0,105030.0,0.5002364]
[1737311448428,0.64847961,105040.0,105030.0,0.4035054]
[1737311449076,0.64847961,105040.0,105030.0,0.31884503]
[1737311449281,0.64847961,105040.0,105030.0,0.32182221]
[1737311449869,0.64847961,105040.0,105030.0,0.17182221]
[1737311450813,0.64847961,105040.0,105030.0,0.13068337]
[1737311451022,0.64847961,105040.0,105030.0,0.28068337]
[1737311453851,0.64847961,105040.0,105030.0,0.34337727]
[1737311455133,0.64847961,105040.0,105030.0,0.34361333]
[1737311455483,0.64847961,105040.0,105030.0,0.28091943]
[1737311456320,0.74772042,105040.0,105030.0,0.28091943]
[1737311456529,0.82742042,105040.0,105030.0,0.28091943]
[1737311456956,0.82742042,105040.0,105030.0,0.34361333]
[1737311457915,0.82742042,105040.0,105030.0,0.34337727]
[1737311460672,1.36692042,105040.0,105030.0,0.34337727]
[1737311465418,1.36692042,105040.0,105030.0,0.28068337]
[1737311466030,1.36692042,105040.0,105030.0,0.34337727]
[1737311467006,1.36692042,105040.0,105030.0,0.28068337]
[1737311469090,1.36692042,105040.0,105030.0,0.34337727]
[1737311470782,1.36692042,105040.0,105030.0,0.32182307]
[1737311471937,1.36692042,105040.0,105030.0,0.32205913]
[1737311472472,1.18797961,105040.0,105030.0,0.44019883]
[1737311472680,0.64847961,105040.0,105030.0,0.39905913]
[1737311473449,0.64847961,105040.0,105030.0,0.96504153]
[1737311473691,0.64847961,105040.0,105030.0,0.92390183]